[Event "Titled Tuesday Blitz April 26 Early 2022"]
[White "Lewicki, Miroslaw"]
[Black "Steil-Antoni, Fiona"]
[WhiteFideId "1113380"]
[BlackFideId "4001249"]
[WhiteElo "2283"]
[BlackElo "2059"]
[Result "1-0"]
[Round "03"]
[TimeControl "180+1"]
[Date "2022.04.26"]
[WhiteClock "0:00:15"]
[BlackClock "0:00:05"]

1. f3 {[%clk 0:02:43]}  e5 {[%clk 0:02:52]} 2. Kf2 {[%clk 0:02:43]}  d5 {[%clk 0:02:52]} 3. g3 {[%clk 0:02:44]}  Bc5+ {[%clk 0:02:48]} 4. Kg2 {[%clk 0:02:44]}  f5 {[%clk 0:02:44]} 5. c3 {[%clk 0:02:44]}  Nc6 {[%clk 0:02:43]} 6. b4 {[%clk 0:02:30]}  Bb6 {[%clk 0:02:42]} 7. a4 {[%clk 0:02:30]}  a6 {[%clk 0:02:43]} 8. Bb2 {[%clk 0:02:29]}  Nf6 {[%clk 0:02:32]} 9. b5 {[%clk 0:02:18]}  axb5 {[%clk 0:02:32]} 10. axb5 {[%clk 0:02:19]}  Rxa1 {[%clk 0:02:30]} 11. Bxa1 {[%clk 0:02:20]}  Ne7 {[%clk 0:02:25]} 12. d4 {[%clk 0:02:20]}  e4 {[%clk 0:02:18]} 13. Bb2 {[%clk 0:02:19]}  O-O {[%clk 0:02:15]} 14. Nh3 {[%clk 0:02:17]}  h6 {[%clk 0:02:10]} 15. Na3 {[%clk 0:01:41]}  g5 {[%clk 0:02:08]} 16. Nf2 {[%clk 0:01:41]}  f4 {[%clk 0:01:50]} 17. Qb3 {[%clk 0:01:35]}  Kh7 {[%clk 0:01:41]} 18. c4 {[%clk 0:01:18]}  Nf5 {[%clk 0:01:23]} 19. c5 {[%clk 0:00:39]}  Ba7 {[%clk 0:01:10]} 20. Nc2 {[%clk 0:00:37]}  c6 {[%clk 0:00:55]} 21. bxc6 {[%clk 0:00:31]}  bxc6 {[%clk 0:00:56]} 22. Nb4 {[%clk 0:00:32]}  Bd7 {[%clk 0:00:51]} 23. Nd1 {[%clk 0:00:26]}  exf3+ {[%clk 0:00:44]} 24. exf3 {[%clk 0:00:26]}  Re8 {[%clk 0:00:42]} 25. Bd3 {[%clk 0:00:25]}  Kg7 {[%clk 0:00:41]} 26. Qc2 {[%clk 0:00:24]}  Ne3+ {[%clk 0:00:30]} 27. Nxe3 {[%clk 0:00:24]}  Rxe3 {[%clk 0:00:31]} 28. Bc1 {[%clk 0:00:25]}  Re7 {[%clk 0:00:27]} 29. gxf4 {[%clk 0:00:25]}  gxf4 {[%clk 0:00:14]} 30. Bxf4 {[%clk 0:00:26]}  Bb8 {[%clk 0:00:15]} 31. Qd2 {[%clk 0:00:22]}  Nh5 {[%clk 0:00:11]} 32. Bxh6+ {[%clk 0:00:22]}  Kh8 {[%clk 0:00:12]} 33. Bg5 {[%clk 0:00:22]}  Qg8 {[%clk 0:00:09]} 34. Kf2 {[%clk 0:00:19]}  Rg7 {[%clk 0:00:08]} 35. Rg1 {[%clk 0:00:17]}  Bf4 {[%clk 0:00:05]} 36. Bxf4 {[%clk 0:00:14]}  Rxg1 {[%clk 0:00:05]} 37. Be5+ {[%clk 0:00:15]} 1-0


[Site "https://www.chess.com"]

[Event "Titled Tuesday Blitz April 26 Early 2022"]
[White "Li, Ben"]
[Black "Alekseenko, Kirill"]
[WhiteFideId "2089980"]
[BlackFideId "4135539"]
[WhiteElo "2267"]
[BlackElo "2682"]
[Result "1/2-1/2"]
[Round "03"]
[TimeControl "180+1"]
[Date "2022.04.26"]
[WhiteClock "0:00:04"]
[BlackClock "0:00:09"]

1. d4 {[%clk 0:03:00]}  d5 {[%clk 0:02:59]} 2. Nf3 {[%clk 0:03:00]}  Nf6 {[%clk 0:02:59]} 3. c4 {[%clk 0:03:01]}  dxc4 {[%clk 0:03:00]} 4. Nc3 {[%clk 0:03:01]}  a6 {[%clk 0:03:00]} 5. e4 {[%clk 0:03:01]}  b5 {[%clk 0:03:01]} 6. e5 {[%clk 0:03:01]}  Nd5 {[%clk 0:03:01]} 7. a4 {[%clk 0:03:01]}  e6 {[%clk 0:03:02]} 8. axb5 {[%clk 0:03:00]}  Nb6 {[%clk 0:03:02]} 9. Be3 {[%clk 0:02:58]}  Be7 {[%clk 0:03:01]} 10. Be2 {[%clk 0:02:58]}  Bb7 {[%clk 0:03:02]} 11. bxa6 {[%clk 0:02:56]}  Rxa6 {[%clk 0:03:02]} 12. Rxa6 {[%clk 0:02:51]}  Nxa6 {[%clk 0:03:02]} 13. O-O {[%clk 0:02:42]}  O-O {[%clk 0:03:02]} 14. Qd2 {[%clk 0:02:42]}  Nb4 {[%clk 0:02:59]} 15. Ra1 {[%clk 0:02:36]}  N4d5 {[%clk 0:02:48]} 16. Ne4 {[%clk 0:02:01]}  Nxe3 {[%clk 0:02:30]} 17. Qxe3 {[%clk 0:02:01]}  Bd5 {[%clk 0:02:30]} 18. Nfd2 {[%clk 0:01:50]}  h6 {[%clk 0:02:15]} 19. Rc1 {[%clk 0:01:42]}  Qa8 {[%clk 0:02:10]} 20. f3 {[%clk 0:01:37]}  Qa2 {[%clk 0:02:04]} 21. Rc2 {[%clk 0:00:58]}  Qa1+ {[%clk 0:01:36]} 22. Kf2 {[%clk 0:00:58]}  Bh4+ {[%clk 0:01:22]} 23. g3 {[%clk 0:00:55]}  Be7 {[%clk 0:01:22]} 24. Kg2 {[%clk 0:00:54]}  Qa4 {[%clk 0:01:19]} 25. Rc1 {[%clk 0:00:51]}  Rd8 {[%clk 0:01:15]} 26. Qc3 {[%clk 0:00:46]}  Bb4 {[%clk 0:01:12]} 27. Qc2 {[%clk 0:00:44]}  Qxc2 {[%clk 0:00:56]} 28. Rxc2 {[%clk 0:00:45]}  Bxe4 {[%clk 0:00:56]} 29. fxe4 {[%clk 0:00:45]}  Rxd4 {[%clk 0:00:54]} 30. Nxc4 {[%clk 0:00:45]}  Nd7 {[%clk 0:00:47]} 31. Kf3 {[%clk 0:00:43]}  Kf8 {[%clk 0:00:38]} 32. Ke3 {[%clk 0:00:43]}  Bc5 {[%clk 0:00:37]} 33. Kf3 {[%clk 0:00:43]}  Ke7 {[%clk 0:00:36]} 34. h4 {[%clk 0:00:40]}  h5 {[%clk 0:00:37]} 35. Kf4 {[%clk 0:00:39]}  g6 {[%clk 0:00:35]} 36. Rd2 {[%clk 0:00:37]}  Rxd2 {[%clk 0:00:31]} 37. Nxd2 {[%clk 0:00:38]}  Nxe5 {[%clk 0:00:28]} 38. Nc4 {[%clk 0:00:25]}  Nc6 {[%clk 0:00:25]} 39. Bd1 {[%clk 0:00:24]}  e5+ {[%clk 0:00:21]} 40. Kf3 {[%clk 0:00:24]}  Nd4+ {[%clk 0:00:22]} 41. Ke3 {[%clk 0:00:20]}  Ke6 {[%clk 0:00:20]} 42. Kd3 {[%clk 0:00:19]}  f6 {[%clk 0:00:16]} 43. Ba4 {[%clk 0:00:19]}  Bb4 {[%clk 0:00:16]} 44. Be8 {[%clk 0:00:18]}  g5 {[%clk 0:00:15]} 45. Bxh5 {[%clk 0:00:17]}  gxh4 {[%clk 0:00:15]} 46. gxh4 {[%clk 0:00:17]}  Be1 {[%clk 0:00:16]} 47. Bg4+ {[%clk 0:00:18]}  Kf7 {[%clk 0:00:16]} 48. h5 {[%clk 0:00:18]}  Kg7 {[%clk 0:00:17]} 49. Ne3 {[%clk 0:00:17]}  Kh7 {[%clk 0:00:14]} 50. Nf5 {[%clk 0:00:17]}  Ne6 {[%clk 0:00:14]} 51. Ne3 {[%clk 0:00:13]}  Nc5+ {[%clk 0:00:14]} 52. Ke2 {[%clk 0:00:12]}  Ba5 {[%clk 0:00:09]} 53. Nd5 {[%clk 0:00:11]}  Kg7 {[%clk 0:00:08]} 54. Bf5 {[%clk 0:00:10]}  Nb3 {[%clk 0:00:07]} 55. Kd3 {[%clk 0:00:07]}  c6 {[%clk 0:00:07]} 56. h6+ {[%clk 0:00:06]}  Kxh6 {[%clk 0:00:08]} 57. Nxf6 {[%clk 0:00:06]}  Kg5 {[%clk 0:00:08]} 58. Nd7 {[%clk 0:00:05]}  Kf4 {[%clk 0:00:08]} 59. Be6 {[%clk 0:00:05]}  Nd4 {[%clk 0:00:07]} 60. Bc4 {[%clk 0:00:03]}  Be1 {[%clk 0:00:07]} 61. Nf8 {[%clk 0:00:03]}  Nf3 {[%clk 0:00:07]} 62. Ne6+ {[%clk 0:00:03]}  Kg3 {[%clk 0:00:08]} 63. Nc5 {[%clk 0:00:03]}  Bf2 {[%clk 0:00:07]} 64. Nd7 {[%clk 0:00:04]}  Kf4 {[%clk 0:00:08]} 65. Nf8 {[%clk 0:00:04]}  Bb6 {[%clk 0:00:07]} 66. Ke2 {[%clk 0:00:04]}  Nd4+ {[%clk 0:00:07]} 67. Kd3 {[%clk 0:00:04]}  Nf3 {[%clk 0:00:08]} 68. Ke2 {[%clk 0:00:04]}  Kxe4 {[%clk 0:00:08]} 69. Bd3+ {[%clk 0:00:04]}  Kf4 {[%clk 0:00:09]} 70. Ng6+ {[%clk 0:00:05]}  Kg3 {[%clk 0:00:09]} 71. Be4 {[%clk 0:00:04]}  Nd4+ {[%clk 0:00:08]} 72. Kd3 {[%clk 0:00:05]}  Ne6 {[%clk 0:00:08]} 73. Nxe5 {[%clk 0:00:04]}  Nc5+ {[%clk 0:00:05]} 74. Kc4 {[%clk 0:00:05]}  Nxe4 {[%clk 0:00:06]} 75. Nxc6 {[%clk 0:00:06]}  Kf4 {[%clk 0:00:06]} 76. b4 {[%clk 0:00:07]}  Be3 {[%clk 0:00:05]} 77. Kd5 {[%clk 0:00:06]}  Nc3+ {[%clk 0:00:06]} 78. Kc4 {[%clk 0:00:05]}  Ne2 {[%clk 0:00:06]} 79. b5 {[%clk 0:00:05]}  Ke4 {[%clk 0:00:07]} 80. Nb4 {[%clk 0:00:05]}  Nf4 {[%clk 0:00:07]} 81. Nc2 {[%clk 0:00:03]}  Bb6 {[%clk 0:00:07]} 82. Nb4 {[%clk 0:00:03]}  Ke5 {[%clk 0:00:07]} 83. Nd3+ {[%clk 0:00:03]}  Nxd3 {[%clk 0:00:06]} 84. Kxd3 {[%clk 0:00:04]}  Kd5 {[%clk 0:00:07]} 85. Kc3 {[%clk 0:00:04]}  Kc5 {[%clk 0:00:08]} 86. Kd3 {[%clk 0:00:04]}  Kxb5 {[%clk 0:00:09]} 1/2-1/2


[Site "https://www.chess.com"]

[Event "Titled Tuesday Blitz April 26 Early 2022"]
[White "Lucas, Arthur"]
[Black "Karacsonyi, Gellert"]
[WhiteFideId "26093073"]
[BlackFideId "764620"]
[WhiteElo "2129"]
[BlackElo "2187"]
[Result "0-1"]
[Round "03"]
[TimeControl "180+1"]
[Date "2022.04.26"]
[WhiteClock "0:00:29"]
[BlackClock "0:01:00"]

1. e4 {[%clk 0:03:00]}  c5 {[%clk 0:02:59]} 2. Nc3 {[%clk 0:03:00]}  Nc6 {[%clk 0:03:00]} 3. Bb5 {[%clk 0:03:00]}  g6 {[%clk 0:03:00]} 4. Bxc6 {[%clk 0:03:00]}  dxc6 {[%clk 0:03:00]} 5. f4 {[%clk 0:03:01]}  Bg7 {[%clk 0:03:00]} 6. Nf3 {[%clk 0:03:02]}  Bg4 {[%clk 0:02:58]} 7. O-O {[%clk 0:03:02]}  Nf6 {[%clk 0:02:57]} 8. d3 {[%clk 0:03:02]}  O-O {[%clk 0:02:57]} 9. Qe1 {[%clk 0:03:02]}  Bxf3 {[%clk 0:02:55]} 10. Rxf3 {[%clk 0:03:03]}  Nd7 {[%clk 0:02:56]} 11. Rh3 {[%clk 0:02:56]}  Bd4+ {[%clk 0:02:49]} 12. Be3 {[%clk 0:02:52]}  e5 {[%clk 0:02:44]} 13. f5 {[%clk 0:02:47]}  Qf6 {[%clk 0:02:40]} 14. Kh1 {[%clk 0:02:42]}  Bxe3 {[%clk 0:02:40]} 15. Qxe3 {[%clk 0:02:41]}  Qg7 {[%clk 0:02:37]} 16. Rf1 {[%clk 0:02:38]}  f6 {[%clk 0:02:37]} 17. fxg6 {[%clk 0:02:31]}  hxg6 {[%clk 0:02:38]} 18. Ne2 {[%clk 0:02:29]}  Rf7 {[%clk 0:02:32]} 19. Rff3 {[%clk 0:02:19]}  b6 {[%clk 0:02:23]} 20. Rfg3 {[%clk 0:02:18]}  Nf8 {[%clk 0:02:22]} 21. Rg4 {[%clk 0:02:15]}  Ne6 {[%clk 0:02:14]} 22. Rh6 {[%clk 0:02:06]}  g5 {[%clk 0:01:55]} 23. Rh3 {[%clk 0:02:04]}  Nd4 {[%clk 0:01:52]} 24. Ng3 {[%clk 0:01:57]}  Nxc2 {[%clk 0:01:45]} 25. Qf2 {[%clk 0:01:58]}  Nd4 {[%clk 0:01:45]} 26. Nh5 {[%clk 0:01:56]}  Qg6 {[%clk 0:01:43]} 27. Ng3 {[%clk 0:01:15]}  Rd8 {[%clk 0:01:39]} 28. Rh5 {[%clk 0:01:13]}  Rh7 {[%clk 0:01:23]} 29. Rxh7 {[%clk 0:01:06]}  Kxh7 {[%clk 0:01:24]} 30. h4 {[%clk 0:01:05]}  Qh6 {[%clk 0:01:11]} 31. Kg1 {[%clk 0:00:50]}  Rg8 {[%clk 0:01:02]} 32. Nf5 {[%clk 0:00:38]}  Qh5 {[%clk 0:01:00]} 33. Qg3 {[%clk 0:00:29]}  Ne2+ {[%clk 0:01:00]} 0-1


[Site "https://www.chess.com"]

[Event "Titled Tuesday Blitz April 26 Early 2022"]
[White "Maksimenko, Viktor"]
[Black "Atanejhad, Sahebali"]
[WhiteFideId "13710478"]
[BlackFideId "12506664"]
[WhiteElo "2269"]
[BlackElo "1953"]
[Result "0-1"]
[Round "03"]
[TimeControl "180+1"]
[Date "2022.04.26"]
[WhiteClock "0:00:06"]
[BlackClock "0:00:04"]

1. d4 {[%clk 0:03:00]}  Nf6 {[%clk 0:02:54]} 2. c4 {[%clk 0:03:00]}  e6 {[%clk 0:02:54]} 3. Nf3 {[%clk 0:03:00]}  c5 {[%clk 0:02:53]} 4. d5 {[%clk 0:03:00]}  b5 {[%clk 0:02:53]} 5. e4 {[%clk 0:03:00]}  Nxe4 {[%clk 0:02:43]} 6. Bd3 {[%clk 0:02:59]}  Nf6 {[%clk 0:02:41]} 7. Nc3 {[%clk 0:02:45]}  b4 {[%clk 0:02:38]} 8. Ne4 {[%clk 0:02:40]}  exd5 {[%clk 0:02:32]} 9. cxd5 {[%clk 0:02:18]}  Nxe4 {[%clk 0:02:31]} 10. Bxe4 {[%clk 0:02:17]}  d6 {[%clk 0:02:31]} 11. O-O {[%clk 0:02:15]}  Be7 {[%clk 0:02:32]} 12. Qc2 {[%clk 0:02:08]}  h6 {[%clk 0:02:30]} 13. a3 {[%clk 0:01:53]}  bxa3 {[%clk 0:02:26]} 14. Rxa3 {[%clk 0:01:54]}  O-O {[%clk 0:02:25]} 15. Nd2 {[%clk 0:01:26]}  Nd7 {[%clk 0:02:24]} 16. Rg3 {[%clk 0:01:14]}  Bf6 {[%clk 0:02:04]} 17. Nc4 {[%clk 0:01:13]}  Ne5 {[%clk 0:02:00]} 18. Bxh6 {[%clk 0:01:06]}  Ba6 {[%clk 0:01:55]} 19. b3 {[%clk 0:00:39]}  Nxc4 {[%clk 0:01:44]} 20. bxc4 {[%clk 0:00:40]}  Re8 {[%clk 0:01:39]} 21. Bd3 {[%clk 0:00:29]}  Rb8 {[%clk 0:01:32]} 22. Bf5 {[%clk 0:00:21]}  Rb2 {[%clk 0:01:23]} 23. Bxg7 {[%clk 0:00:18]}  Rxc2 {[%clk 0:00:24]} 24. Bxf6+ {[%clk 0:00:18]}  Kf8 {[%clk 0:00:24]} 25. Bxd8 {[%clk 0:00:19]}  Rxc4 {[%clk 0:00:23]} 26. Bg5 {[%clk 0:00:15]}  Ra4 {[%clk 0:00:19]} 27. Rd1 {[%clk 0:00:09]}  Rd4 {[%clk 0:00:18]} 28. Rb1 {[%clk 0:00:09]}  Rb4 {[%clk 0:00:17]} 29. Rc1 {[%clk 0:00:09]}  Rc4 {[%clk 0:00:17]} 30. Ra1 {[%clk 0:00:01]}  Ra4 {[%clk 0:00:17]} 31. Rb1 {[%clk 0:00:02]}  Rb4 {[%clk 0:00:16]} 32. Bh6+ {[%clk 0:00:02]}  Ke7 {[%clk 0:00:16]} 33. Rxb4 {[%clk 0:00:02]}  cxb4 {[%clk 0:00:13]} 34. h4 {[%clk 0:00:03]}  Kf6 {[%clk 0:00:13]} 35. Bg5+ {[%clk 0:00:03]}  Kxf5 {[%clk 0:00:12]} 36. Rf3+ {[%clk 0:00:03]}  Kg6 {[%clk 0:00:12]} 37. Rf6+ {[%clk 0:00:04]}  Kg7 {[%clk 0:00:12]} 38. h5 {[%clk 0:00:04]}  Re5 {[%clk 0:00:11]} 39. f4 {[%clk 0:00:04]}  Rxd5 {[%clk 0:00:10]} 40. h6+ {[%clk 0:00:04]}  Kg8 {[%clk 0:00:09]} 41. h7+ {[%clk 0:00:04]}  Kxh7 {[%clk 0:00:09]} 42. Rh6+ {[%clk 0:00:04]}  Kg7 {[%clk 0:00:08]} 43. Rh3 {[%clk 0:00:05]}  Bb7 {[%clk 0:00:06]} 44. Rg3 {[%clk 0:00:05]}  Kf8 {[%clk 0:00:06]} 45. Bf6 {[%clk 0:00:05]}  b3 {[%clk 0:00:06]} 46. Rh3 {[%clk 0:00:05]}  Rd1+ {[%clk 0:00:05]} 47. Kh2 {[%clk 0:00:05]}  Ke8 {[%clk 0:00:05]} 48. Rxb3 {[%clk 0:00:06]}  Bc6 {[%clk 0:00:03]} 49. Rb8+ {[%clk 0:00:06]}  Kd7 {[%clk 0:00:04]} 50. Rf8 {[%clk 0:00:06]}  Ke6 {[%clk 0:00:03]} 51. Bh4 {[%clk 0:00:06]}  Rd2 {[%clk 0:00:03]} 52. f5+ {[%clk 0:00:07]}  Kxf5 {[%clk 0:00:03]} 53. Rxf7+ {[%clk 0:00:07]}  Ke6 {[%clk 0:00:03]} 54. Rf2 {[%clk 0:00:08]}  Rxf2 {[%clk 0:00:03]} 55. Bxf2 {[%clk 0:00:08]}  a5 {[%clk 0:00:03]} 56. Bd4 {[%clk 0:00:09]}  a4 {[%clk 0:00:03]} 57. Kg3 {[%clk 0:00:09]}  Be4 {[%clk 0:00:04]} 58. Kf2 {[%clk 0:00:09]}  Kd5 {[%clk 0:00:04]} 59. Bg7 {[%clk 0:00:08]}  Kc4 {[%clk 0:00:04]} 60. g4 {[%clk 0:00:09]}  d5 {[%clk 0:00:04]} 61. Ke3 {[%clk 0:00:10]}  Bg6 {[%clk 0:00:04]} 62. Kd2 {[%clk 0:00:10]}  d4 {[%clk 0:00:03]} 63. Kc1 {[%clk 0:00:09]}  a3 {[%clk 0:00:04]} 64. Bh8 {[%clk 0:00:04]}  a2 {[%clk 0:00:03]} 65. Kb2 {[%clk 0:00:05]}  d3 {[%clk 0:00:01]} 66. Bc3 {[%clk 0:00:03]}  a1=Q+ {[%clk 0:00:02]} 67. Kxa1 {[%clk 0:00:04]}  Kxc3 {[%clk 0:00:03]} 68. Kb1 {[%clk 0:00:05]}  d2+ {[%clk 0:00:03]} 69. Ka2 {[%clk 0:00:06]}  d1=Q {[%clk 0:00:04]} 70. Ka3 {[%clk 0:00:06]}  Qb3# {[%clk 0:00:04]} 0-1


[Site "https://www.chess.com"]

[Event "Titled Tuesday Blitz April 26 Early 2022"]
[White "Mikhnenko, Alexander"]
[Black "Mohammadian, Mohammad"]
[WhiteFideId "34143014"]
[BlackFideId "12566055"]
[WhiteElo "2117"]
[BlackElo "1544"]
[Result "1-0"]
[Round "03"]
[TimeControl "180+1"]
[Date "2022.04.26"]
[WhiteClock "0:01:31"]
[BlackClock "0:00:52"]

1. e4 {[%clk 0:03:00]}  e5 {[%clk 0:02:59]} 2. Nf3 {[%clk 0:03:00]}  Nc6 {[%clk 0:02:58]} 3. Bb5 {[%clk 0:03:01]}  a6 {[%clk 0:02:57]} 4. Ba4 {[%clk 0:03:01]}  Nf6 {[%clk 0:02:57]} 5. Qe2 {[%clk 0:03:01]}  b5 {[%clk 0:02:54]} 6. Bb3 {[%clk 0:03:01]}  Be7 {[%clk 0:02:50]} 7. O-O {[%clk 0:03:00]}  O-O {[%clk 0:02:50]} 8. c3 {[%clk 0:03:01]}  d6 {[%clk 0:02:49]} 9. Rd1 {[%clk 0:03:01]}  Bg4 {[%clk 0:02:48]} 10. h3 {[%clk 0:02:58]}  Bh5 {[%clk 0:02:48]} 11. d3 {[%clk 0:02:59]}  h6 {[%clk 0:02:46]} 12. Nbd2 {[%clk 0:02:59]}  Re8 {[%clk 0:02:41]} 13. Nf1 {[%clk 0:02:59]}  Bf8 {[%clk 0:02:41]} 14. g4 {[%clk 0:02:59]}  Bg6 {[%clk 0:02:39]} 15. Ng3 {[%clk 0:02:59]}  d5 {[%clk 0:02:32]} 16. Nh4 {[%clk 0:02:52]}  Nxe4 {[%clk 0:02:29]} 17. dxe4 {[%clk 0:02:32]}  Qxh4 {[%clk 0:02:27]} 18. Bxd5 {[%clk 0:02:32]}  Bc5 {[%clk 0:02:11]} 19. Be3 {[%clk 0:02:28]}  Nd4 {[%clk 0:01:57]} 20. cxd4 {[%clk 0:02:23]}  exd4 {[%clk 0:01:57]} 21. Bxd4 {[%clk 0:02:21]}  Bxd4 {[%clk 0:01:53]} 22. Rxd4 {[%clk 0:02:22]}  Rad8 {[%clk 0:01:43]} 23. Rad1 {[%clk 0:02:17]}  c6 {[%clk 0:01:43]} 24. Bxc6 {[%clk 0:02:01]}  Rxd4 {[%clk 0:01:42]} 25. Rxd4 {[%clk 0:02:02]}  Rc8 {[%clk 0:01:39]} 26. Rd6 {[%clk 0:01:56]}  Qe7 {[%clk 0:01:34]} 27. Qd2 {[%clk 0:01:49]}  Qc7 {[%clk 0:01:20]} 28. Kg2 {[%clk 0:01:44]}  Qb6 {[%clk 0:01:06]} 29. Bd5 {[%clk 0:01:35]}  Qc5 {[%clk 0:01:05]} 30. Rxg6 {[%clk 0:01:32]}  Rd8 {[%clk 0:00:57]} 31. Qxh6 {[%clk 0:01:31]}  Kf8 {[%clk 0:00:52]} 32. Qxg7+ {[%clk 0:01:30]}  Ke7 {[%clk 0:00:52]} 33. Qxf7# {[%clk 0:01:31]} 1-0


[Site "https://www.chess.com"]

[Event "Titled Tuesday Blitz April 26 Early 2022"]
[White "Mortazavi, Ali"]
[Black "Kamsky, Gata"]
[WhiteFideId "401323"]
[BlackFideId "2000024"]
[WhiteElo "2339"]
[BlackElo "2645"]
[Result "0-1"]
[Round "03"]
[TimeControl "180+1"]
[Date "2022.04.26"]
[WhiteClock "0:00:02"]
[BlackClock "0:00:31"]

1. Nf3 {[%clk 0:03:00]}  Nf6 {[%clk 0:02:57]} 2. g3 {[%clk 0:03:01]}  g6 {[%clk 0:02:57]} 3. Bg2 {[%clk 0:03:01]}  Bg7 {[%clk 0:02:57]} 4. O-O {[%clk 0:03:02]}  O-O {[%clk 0:02:56]} 5. d3 {[%clk 0:03:03]}  d5 {[%clk 0:02:54]} 6. Nbd2 {[%clk 0:03:03]}  c5 {[%clk 0:02:47]} 7. e3 {[%clk 0:03:03]}  Nc6 {[%clk 0:02:47]} 8. e4 {[%clk 0:03:03]}  Bg4 {[%clk 0:02:43]} 9. h3 {[%clk 0:03:03]}  Bxf3 {[%clk 0:02:43]} 10. Qxf3 {[%clk 0:03:04]}  e6 {[%clk 0:02:42]} 11. c3 {[%clk 0:02:55]}  Qc7 {[%clk 0:02:39]} 12. Qe2 {[%clk 0:02:53]}  Rad8 {[%clk 0:02:37]} 13. f4 {[%clk 0:02:52]}  b5 {[%clk 0:02:13]} 14. e5 {[%clk 0:02:44]}  Nd7 {[%clk 0:02:12]} 15. Nf3 {[%clk 0:02:42]}  d4 {[%clk 0:01:53]} 16. Bd2 {[%clk 0:02:15]}  Nb6 {[%clk 0:01:47]} 17. Kh2 {[%clk 0:02:03]}  Na4 {[%clk 0:01:45]} 18. Rab1 {[%clk 0:01:55]}  Rd7 {[%clk 0:01:38]} 19. cxd4 {[%clk 0:01:36]}  Nxd4 {[%clk 0:01:36]} 20. Nxd4 {[%clk 0:01:36]}  Rxd4 {[%clk 0:01:25]} 21. b3 {[%clk 0:01:36]}  Nb6 {[%clk 0:01:21]} 22. Be3 {[%clk 0:01:35]}  Rfd8 {[%clk 0:00:53]} 23. Bxd4 {[%clk 0:01:34]}  Rxd4 {[%clk 0:00:53]} 24. Rbc1 {[%clk 0:01:33]}  Bf8 {[%clk 0:00:52]} 25. Be4 {[%clk 0:01:18]}  a5 {[%clk 0:00:51]} 26. h4 {[%clk 0:01:17]}  Qd8 {[%clk 0:00:47]} 27. Rf2 {[%clk 0:01:06]}  Nd5 {[%clk 0:00:45]} 28. h5 {[%clk 0:01:03]}  Nb4 {[%clk 0:00:44]} 29. hxg6 {[%clk 0:01:03]}  hxg6 {[%clk 0:00:44]} 30. Rf3 {[%clk 0:00:34]}  Qd7 {[%clk 0:00:42]} 31. Rg1 {[%clk 0:00:30]}  c4 {[%clk 0:00:41]} 32. bxc4 {[%clk 0:00:30]}  bxc4 {[%clk 0:00:41]} 33. Rd1 {[%clk 0:00:26]}  c3 {[%clk 0:00:41]} 34. Rc1 {[%clk 0:00:27]}  Qc7 {[%clk 0:00:39]} 35. g4 {[%clk 0:00:22]}  Nd5 {[%clk 0:00:36]} 36. Kg3 {[%clk 0:00:20]}  g5 {[%clk 0:00:34]} 37. Bxd5 {[%clk 0:00:18]}  Rxd5 {[%clk 0:00:33]} 38. Rh1 {[%clk 0:00:15]}  Bg7 {[%clk 0:00:32]} 39. f5 {[%clk 0:00:07]}  Rxe5 {[%clk 0:00:31]} 40. Qh2 {[%clk 0:00:02]}  Re2+ {[%clk 0:00:31]} 0-1


[Site "https://www.chess.com"]

[Event "Titled Tuesday Blitz April 26 Early 2022"]
[White "Nakamura, Hikaru"]
[Black "Yuan, Qingyu"]
[WhiteFideId "2016192"]
[BlackFideId "8609772"]
[WhiteElo "3222"]
[BlackElo "2846"]
[Result "1-0"]
[Round "03"]
[TimeControl "180+1"]
[Date "2022.04.26"]
[WhiteClock "0:02:10"]
[BlackClock "0:01:23"]

1. Nf3 {[%clk 0:03:00]}  d5 {[%clk 0:02:59]} 2. e3 {[%clk 0:03:00]}  c5 {[%clk 0:02:58]} 3. b3 {[%clk 0:03:00]}  Nf6 {[%clk 0:02:57]} 4. Bb2 {[%clk 0:03:00]}  g6 {[%clk 0:02:57]} 5. Bxf6 {[%clk 0:02:58]}  exf6 {[%clk 0:02:58]} 6. c3 {[%clk 0:02:59]}  Bg7 {[%clk 0:02:51]} 7. d4 {[%clk 0:02:59]}  cxd4 {[%clk 0:02:38]} 8. Nxd4 {[%clk 0:02:56]}  O-O {[%clk 0:02:38]} 9. g3 {[%clk 0:02:57]}  Qe7 {[%clk 0:02:34]} 10. Bg2 {[%clk 0:02:57]}  Rd8 {[%clk 0:02:34]} 11. O-O {[%clk 0:02:55]}  Nc6 {[%clk 0:02:32]} 12. Qd3 {[%clk 0:02:51]}  f5 {[%clk 0:02:30]} 13. Nd2 {[%clk 0:02:50]}  Ne5 {[%clk 0:02:15]} 14. Qe2 {[%clk 0:02:48]}  Be6 {[%clk 0:02:15]} 15. Rac1 {[%clk 0:02:47]}  Rac8 {[%clk 0:02:15]} 16. Rfd1 {[%clk 0:02:44]}  a6 {[%clk 0:02:13]} 17. N2f3 {[%clk 0:02:40]}  Nd7 {[%clk 0:02:04]} 18. Nxe6 {[%clk 0:02:28]}  fxe6 {[%clk 0:02:03]} 19. c4 {[%clk 0:02:28]}  dxc4 {[%clk 0:01:52]} 20. Rxc4 {[%clk 0:02:28]}  Nb6 {[%clk 0:01:50]} 21. Rxc8 {[%clk 0:02:27]}  Rxc8 {[%clk 0:01:51]} 22. Nd4 {[%clk 0:02:27]}  Rd8 {[%clk 0:01:42]} 23. Qc2 {[%clk 0:02:14]}  Rc8 {[%clk 0:01:34]} 24. Qd3 {[%clk 0:02:11]}  Rd8 {[%clk 0:01:33]} 25. Nxf5 {[%clk 0:02:10]}  Rxd3 {[%clk 0:01:23]} 26. Nxe7+ {[%clk 0:02:08]}  Kf7 {[%clk 0:01:22]} 27. Rxd3 {[%clk 0:02:09]}  Kxe7 {[%clk 0:01:22]} 28. Bxb7 {[%clk 0:02:09]}  a5 {[%clk 0:01:23]} 29. Bc6 {[%clk 0:02:10]} 1-0


[Site "https://www.chess.com"]